[Event "FTX Road to Miami Prelims 2022"]
[Site "Online"]
[Date "2022.07.04"]
[Round "15.4"]
[White "Sevian, Samuel"]
[Black "Mamedyarov, Shakhriyar"]
[Result "1-0"]
[ECO "B45"]
[WhiteElo "2684"]
[BlackElo "2759"]
[Annotator "ChessBase"]
[PlyCount "73"]
[EventDate "2022.07.10"]
[EventType "tourn"]
[EventCountry "NET"]
[SourceTitle "playchess.com"]
[Source "ChessBase"]
[SourceQuality "1"]
[TimeControl "40/5400+30:1800+30"]

1. e4 {[%emt 1:15:40]} c5 {[%emt 1:15:40]} 2. Nf3 {[%emt 0:00:22]} e6 {[%emt 0:00:22]} 3. d4 {[%emt 0:00:21]} cxd4 {[%emt 0:00:21]} 4. Nxd4 {[%emt 0:00:20]} Nf6 {[%emt 0:00:21]} 5. Nc3 {[%emt 0:00:22]} Nc6 {[%emt 0:00:21]} 6. a3 {[%emt 0:00:47]} Be7 {[%emt 0:00:45]} 7. Be3 {[%emt 0:00:50]} O-O {[%emt 0:00:26]} 8. Be2 {[%emt 0:01:10]} Qc7 {[%emt 0:00:43]} 9. f4 {[%emt 0:00:48]} d6 {[%emt 0:00:38]} 10. g4 {[%emt 0:01:42]} Nxd4 {[%emt 0:01:22]} 11. Qxd4 {[%emt 0:01:27]} e5 {[%emt 0:00:23]} 12. Qd2 {[%emt 0:00:21]} Nxg4 {[%emt 0:01:07]} 13. Bxg4 {[%emt 0:01:39]} Bxg4 {[%emt 0:00:20]} 14. f5 {[%emt 0:01:11]} Bh4+ {[%emt 0:04:00]} 15. Bf2 {[%emt 0:00:28]} Bxf2+ {[%emt 0:00:28]} 16. Qxf2 {[%emt 0:00:44]} d5 {[%emt 0:01:09]} 17. Rg1 {[%emt 0:01:04]} Bh5 {[%emt 0:01:08]} 18. Nxd5 {[%emt 0:00:58]} Qc4 {[%emt 0:00:22]} 19. Nf6+ {[%emt 0:01:00]} Kh8 {[%emt 0:00:25]} 20. Nxh5 {[%emt 0:00:20]} Qxe4+ {[%emt 0:00:22]} 21. Kf1 {[%emt 0:01:44]} Rad8 {[%emt 0:00:23]} 22. Rxg7 {[%emt 0:00:55]} Rd6 {[%emt 0:00:39]} 23. Re1 {[%emt 0:01:39]} Qc4+ {[%emt 0:00:25]} 24. Qe2 {[%emt 0:02:25]} Qxe2+ {[%emt 0:00:24]} 25. Rxe2 {[%emt 0:00:22]} Rh6 {[%emt 0:00:21]} 26. Rg5 {[%emt 0:00:33]} f6 {[%emt 0:00:22]} 27. Nxf6 {[%emt 0:00:21]} Rhxf6 {[%emt 0:00:30]} 28. Rxe5 {[%emt 0:00:22]} h6 {[%emt 0:00:20]} 29. Rh5 {[%emt 0:00:33]} Kg7 {[%emt 0:00:37]} 30. Ke2 {[%emt 0:00:31]} Rb6 {[%emt 0:00:33]} 31. b3 {[%emt 0:01:18]} Rc8 {[%emt 0:00:24]} 32. Kd1 {[%emt 0:00:21]} Rd6+ {[%emt 0:00:31]} 33. Kc1 {[%emt 0:00:22]} Rdc6 {[%emt 0:00:27]} 34. Re2 {[%emt 0:00:23]} R8c7 {[%emt 0:00:31]} 35. a4 {[%emt 0:00:24]} Rc3 {[%emt 0:00:33]} 36. Kb2 {[%emt 0:00:23]} Rf3 {[%emt 0:00:26]} 37. Rg2+ {[%emt 0:00:21]} 1-0

[Event "FTX Road to Miami Prelims 2022"]
[Site "Online"]
[Date "2022.07.04"]
[Round "15.5"]
[White "Aronian, Levon"]
[Black "Duda, Jan-Krzysztof"]
[Result "1/2-1/2"]
[ECO "E15"]
[WhiteElo "2775"]
[BlackElo "2750"]
[Annotator "ChessBase"]
[PlyCount "69"]
[EventDate "2022.07.10"]
[EventType "tourn"]
[EventCountry "NET"]
[SourceTitle "playchess.com"]
[Source "ChessBase"]
[SourceQuality "1"]
[TimeControl "40/5400+30:1800+30"]

1. d4 {[%emt 1:15:40]} Nf6 {[%emt 1:15:40]} 2. c4 {[%emt 0:00:22]} e6 {[%emt 0:00:22]} 3. Nf3 {[%emt 0:00:21]} b6 {[%emt 0:00:35]} 4. g3 {[%emt 0:00:24]} Bb4+ {[%emt 0:00:24]} 5. Bd2 {[%emt 0:00:23]} Bxd2+ {[%emt 0:00:22]} 6. Qxd2 {[%emt 0:00:23]} c6 {[%emt 0:00:21]} 7. Bg2 {[%emt 0:00:52]} d5 {[%emt 0:00:22]} 8. O-O {[%emt 0:00:21]} O-O {[%emt 0:00:22]} 9. Rc1 {[%emt 0:00:34]} Bb7 {[%emt 0:00:24]} 10. Ne5 {[%emt 0:00:43]} Nbd7 {[%emt 0:00:25]} 11. cxd5 {[%emt 0:00:35]} cxd5 {[%emt 0:00:44]} 12. Nc6 {[%emt 0:00:40]} Bxc6 {[%emt 0:00:55]} 13. Rxc6 {[%emt 0:00:20]} Rc8 {[%emt 0:00:21]} 14. Rxc8 {[%emt 0:00:23]} Qxc8 {[%emt 0:00:20]} 15. Nc3 {[%emt 0:00:22]} Qc6 {[%emt 0:00:25]} 16. e3 {[%emt 0:00:25]} Rc8 {[%emt 0:00:30]} 17. Rc1 {[%emt 0:00:22]} Ne4 {[%emt 0:01:14]} 18. Qd1 {[%emt 0:00:26]} Nxc3 {[%emt 0:00:36]} 19. Rxc3 {[%emt 0:00:20]} Qb7 {[%emt 0:00:30]} 20. Rxc8+ {[%emt 0:00:22]} Qxc8 {[%emt 0:00:20]} 21. Bf1 {[%emt 0:00:21]} a5 {[%emt 0:00:23]} 22. Bd3 {[%emt 0:00:27]} g6 {[%emt 0:00:26]} 23. Qc2 {[%emt 0:00:22]} Qxc2 {[%emt 0:00:25]} 24. Bxc2 {[%emt 0:00:20]} Nf6 {[%emt 0:00:51]} 25. Kf1 {[%emt 0:00:30]} Ne8 {[%emt 0:00:24]} 26. Bd3 {[%emt 0:00:48]} Nd6 {[%emt 0:00:23]} 27. Ke2 {[%emt 0:00:21]} Kg7 {[%emt 0:00:22]} 28. f3 {[%emt 0:00:27]} f5 {[%emt 0:00:35]} 29. f4 {[%emt 0:00:26]} Kf6 {[%emt 0:00:22]} 30. a4 {[%emt 0:00:24]} h6 {[%emt 0:00:22]} 31. b3 {[%emt 0:00:27]} Nf7 {[%emt 0:00:28]} 32. Bb5 {[%emt 0:00:23]} Nd6 {[%emt 0:00:20]} 33. Bd3 {[%emt 0:00:21]} Nf7 {[%emt 0:00:21]} 34. Bb5 {[%emt 0:00:21]} Nd6 {[%emt 0:00:20]} 35. Bd3 {[%emt 0:00:20]} 1/2-1/2

[Event "FTX Road to Miami Prelims 2022"]
[Site "Online"]
[Date "2022.07.04"]
[Round "15.7"]
[White "Rapport, Richard"]
[Black "Wei, Yi"]
[Result "1-0"]
[ECO "B51"]
[WhiteElo "2764"]
[BlackElo "2727"]
[Annotator "ChessBase"]
[PlyCount "147"]
[EventDate "2022.07.10"]
[EventType "tourn"]
[EventCountry "NET"]
[SourceTitle "playchess.com"]
[Source "ChessBase"]
[SourceQuality "1"]
[TimeControl "40/5400+30:1800+30"]

1. e4 {[%emt 1:15:40]} c5 {[%emt 1:15:40]} 2. Nf3 {[%emt 0:00:22]} d6 {[%emt 0:00:22]} 3. Bb5+ {[%emt 0:00:21]} Nd7 {[%emt 0:00:21]} 4. d4 {[%emt 0:00:21]} cxd4 {[%emt 0:00:22]} 5. Qxd4 {[%emt 0:00:20]} a6 {[%emt 0:00:21]} 6. Bxd7+ {[%emt 0:00:21]} Bxd7 {[%emt 0:00:21]} 7. c4 {[%emt 0:00:23]} Nf6 {[%emt 0:00:25]} 8. Bg5 {[%emt 0:00:22]} e6 {[%emt 0:00:24]} 9. Nc3 {[%emt 0:00:23]} Bc6 {[%emt 0:01:23]} 10. O-O {[%emt 0:00:50]} Be7 {[%emt 0:00:24]} 11. a4 {[%emt 0:00:54]} O-O {[%emt 0:00:37]} 12. Rfe1 {[%emt 0:00:50]} h6 {[%emt 0:00:42]} 13. Bh4 {[%emt 0:00:32]} Qa5 {[%emt 0:00:52]} 14. Nd5 {[%emt 0:01:46]} Bxd5 {[%emt 0:01:14]} 15. cxd5 {[%emt 0:00:52]} exd5 {[%emt 0:02:59]} 16. exd5 {[%emt 0:01:07]} Rae8 {[%emt 0:01:07]} 17. b4 {[%emt 0:01:09]} Qd8 {[%emt 0:00:24]} 18. Rac1 {[%emt 0:00:55]} Qd7 {[%emt 0:00:23]} 19. a5 {[%emt 0:00:33]} Bd8 {[%emt 0:00:24]} 20. h3 {[%emt 0:00:53]} Rxe1+ {[%emt 0:00:39]} 21. Rxe1 {[%emt 0:00:23]} Re8 {[%emt 0:00:23]} 22. Rxe8+ {[%emt 0:00:36]} Nxe8 {[%emt 0:00:30]} 23. Bxd8 {[%emt 0:00:36]} Qxd8 {[%emt 0:00:21]} 24. Nd2 {[%emt 0:00:21]} Nf6 {[%emt 0:00:57]} 25. Nc4 {[%emt 0:00:36]} Qe7 {[%emt 0:01:01]} 26. Ne3 {[%emt 0:02:15]} g6 {[%emt 0:01:29]} 27. Qc4 {[%emt 0:00:28]} Kg7 {[%emt 0:01:08]} 28. b5 {[%emt 0:01:04]} axb5 {[%emt 0:00:42]} 29. Qxb5 {[%emt 0:00:20]} Ne4 {[%emt 0:00:29]} 30. Qb4 {[%emt 0:00:57]} Nc5 {[%emt 0:00:48]} 31. Nc4 {[%emt 0:00:57]} Qf6 {[%emt 0:00:56]} 32. Qd2 {[%emt 0:00:57]} Nb3 {[%emt 0:01:25]} 33. Qb4 {[%emt 0:00:46]} Nc5 {[%emt 0:00:22]} 34. Qd2 {[%emt 0:00:23]} Nb3 {[%emt 0:00:44]} 35. Qe1 {[%emt 0:00:30]} Kh7 {[%emt 0:02:33]} 36. h4 {[%emt 0:01:57]} h5 {[%emt 0:00:38]} 37. g3 {[%emt 0:00:40]} Nc5 {[%emt 0:01:07]} 38. Qe3 {[%emt 0:00:31]} Kg7 {[%emt 0:00:22]} 39. Kg2 {[%emt 0:00:28]} Kf8 {[%emt 0:01:14]} 40. Qf3 {[%emt 0:02:22]} Qxf3+ {[%emt 0:01:36]} 41. Kxf3 {[%emt 0:30:20]} Ke7 {[%emt 0:30:21]} 42. Ke3 {[%emt 0:00:21]} f6 {[%emt 0:00:39]} 43. Nd2 {[%emt 0:01:41]} g5 {[%emt 0:00:32]} 44. Ne4 {[%emt 0:01:43]} gxh4 {[%emt 0:00:24]} 45. gxh4 {[%emt 0:00:24]} Nb3 {[%emt 0:00:37]} 46. Kd3 {[%emt 0:00:38]} Nxa5 {[%emt 0:00:32]} 47. Kc3 {[%emt 0:00:23]} b6 {[%emt 0:01:46]} 48. Ng3 {[%emt 0:00:30]} Nb7 {[%emt 0:00:40]} 49. Nxh5 {[%emt 0:00:32]} f5 {[%emt 0:00:27]} 50. Kc4 {[%emt 0:00:33]} Nc5 {[%emt 0:00:26]} 51. Kb5 {[%emt 0:01:11]} Ne4 {[%emt 0:00:26]} 52. Ng3 {[%emt 0:00:29]} Nxf2 {[%emt 0:00:35]} 53. Nxf5+ {[%emt 0:00:23]} Kd7 {[%emt 0:00:29]} 54. h5 {[%emt 0:00:30]} Ng4 {[%emt 0:00:29]} 55. h6 {[%emt 0:00:23]} Nf6 {[%emt 0:00:21]} 56. Ne3 {[%emt 0:00:22]} Kc7 {[%emt 0:01:10]} 57. Ng4 {[%emt 0:00:32]} Nh7 {[%emt 0:00:21]} 58. Ka6 {[%emt 0:00:22]} Ng5 {[%emt 0:00:52]} 59. Nf6 {[%emt 0:00:24]} Nf7 {[%emt 0:00:20]} 60. h7 {[%emt 0:00:23]} Nh8 {[%emt 0:00:26]} 61. Ne4 {[%emt 0:00:33]} Ng6 {[%emt 0:00:27]} 62. Ng5 {[%emt 0:00:28]} Nh8 {[%emt 0:00:29]} 63. Kb5 {[%emt 0:00:54]} Kd7 {[%emt 0:00:45]} 64. Kxb6 {[%emt 0:00:22]} Ke7 {[%emt 0:00:21]} 65. Kc7 {[%emt 0:00:31]} Ng6 {[%emt 0:00:28]} 66. Ne6 {[%emt 0:01:29]} Nh8 {[%emt 0:00:31]} 67. Nd8 {[%emt 0:00:37]} Ng6 {[%emt 0:00:33]} 68. Ne6 {[%emt 0:00:52]} Nh8 {[%emt 0:00:23]} 69. Nf4 {[%emt 0:00:23]} Kf6 {[%emt 0:00:28]} 70. Kxd6 {[%emt 0:00:46]} Nf7+ {[%emt 0:00:21]} 71. Kd7 {[%emt 0:00:23]} Ne5+ {[%emt 0:00:56]} 72. Ke8 {[%emt 0:00:46]} Kg7 {[%emt 0:00:22]} 73. d6 {[%emt 0:00:21]} Kxh7 {[%emt 0:00:52]} 74. Nd3 {[%emt 0:00:24]} 1-0

[Event "FTX Road to Miami Prelims 2022"]
[Site "Online"]
[Date "2022.07.04"]
[Round "15.8"]
[White "Wojtaszek, Radoslaw"]
[Black "Shankland, Sam"]
[Result "1-0"]
[ECO "A11"]
[WhiteElo "2708"]
[BlackElo "2720"]
[Annotator "ChessBase"]
[PlyCount "55"]
[EventDate "2022.07.10"]
[EventType "tourn"]
[EventCountry "NET"]
[SourceTitle "playchess.com"]
[Source "ChessBase"]
[SourceQuality "1"]
[TimeControl "40/5400+30:1800+30"]

1. c4 {[%emt 1:15:40]} c6 {[%emt 1:15:40]} 2. Nf3 {[%emt 0:00:23]} d5 {[%emt 0:00:23]} 3. e3 {[%emt 0:00:21]} Nf6 {[%emt 0:00:22]} 4. Qc2 {[%emt 0:00:22]} e6 {[%emt 0:00:42]} 5. b3 {[%emt 0:00:22]} Bd6 {[%emt 0:00:26]} 6. Bb2 {[%emt 0:00:20]} O-O {[%emt 0:00:23]} 7. d4 {[%emt 0:00:27]} Nbd7 {[%emt 0:00:24]} 8. Nbd2 {[%emt 0:00:29]} b6 {[%emt 0:01:33]} 9. Bd3 {[%emt 0:02:09]} Bb7 {[%emt 0:00:23]} 10. O-O {[%emt 0:00:20]} Rc8 {[%emt 0:03:07]} 11. e4 {[%emt 0:02:00]} dxe4 {[%emt 0:00:23]} 12. Nxe4 {[%emt 0:00:21]} Nxe4 {[%emt 0:00:21]} 13. Bxe4 {[%emt 0:00:20]} f5 {[%emt 0:00:38]} 14. Bd3 {[%emt 0:00:24]} c5 {[%emt 0:00:22]} 15. d5 {[%emt 0:00:22]} g6 {[%emt 0:02:06]} 16. Rfe1 {[%emt 0:00:45]} exd5 {[%emt 0:00:30]} 17. cxd5 {[%emt 0:00:23]} Be7 {[%emt 0:02:09]} 18. d6 {[%emt 0:01:16]} Bf6 {[%emt 0:00:22]} 19. Bc4+ {[%emt 0:00:29]} Kh8 {[%emt 0:00:23]} 20. Ng5 {[%emt 0:00:23]} Be4 {[%emt 0:02:13]} 21. Nxe4 {[%emt 0:01:33]} fxe4 {[%emt 0:00:24]} 22. Rxe4 {[%emt 0:00:21]} Nb8 {[%emt 0:01:42]} 23. Rd1 {[%emt 0:01:24]} Nc6 {[%emt 0:00:33]} 24. d7 {[%emt 0:00:25]} Rb8 {[%emt 0:01:07]} 25. Re8 {[%emt 0:00:35]} Nd4 {[%emt 0:00:41]} 26. Rxd8 {[%emt 0:00:27]} Rbxd8 {[%emt 0:00:21]} 27. Bxd4 {[%emt 0:00:30]} Bxd4 {[%emt 0:00:34]} 28. Bb5 {[%emt 0:00:37]} 1-0